Workbook

Sheet Yıllık Eğilimler
A1: Gider Eğilimleri Başlığı
A2: Ay | B2: Gider 1 | C2: Gider 2 | D2: Gider 3 | E2: Gider 4 | F2: Gider 5
A3: Oca | B3: =SUBTOTAL(109,Gider11[Tutar]) -> 100.00 | C3: =SUBTOTAL(109,Gider21[Tutar]) -> 200.00 | D3: =SUBTOTAL(109,Gider31[Tutar]) -> 300.00 | E3: =SUBTOTAL(109,Gider41[Tutar]) -> 400.00 | F3: =SUBTOTAL(109,Gider51[Tutar]) -> 500.00
A4: Şub | B4: =SUBTOTAL(109,Gider12[Tutar]) -> 200.00 | C4: =SUBTOTAL(109,Gider22[Tutar]) -> 200.00 | D4: =SUBTOTAL(109,Gider32[Tutar]) -> 300.00 | E4: =SUBTOTAL(109,Gider42[Tutar]) -> 400.00 | F4: =SUBTOTAL(109,Gider52[Tutar]) -> 500.00
A5: Mar | B5: =SUBTOTAL(109,Gider13[Tutar]) -> 300.00 | C5: =SUBTOTAL(109,Gider23[Tutar]) -> 200.00 | D5: =SUBTOTAL(109,Gider33[Tutar]) -> 300.00 | E5: =SUBTOTAL(109,Gider43[Tutar]) -> 400.00 | F5: =SUBTOTAL(109,Gider53[Tutar]) -> 500.00
A6: Nis | B6: =SUBTOTAL(109,Gider14[Tutar]) -> 400.00 | C6: =SUBTOTAL(109,Gider24[Tutar]) -> 200.00 | D6: =SUBTOTAL(109,Gider34[Tutar]) -> 300.00 | E6: =SUBTOTAL(109,Gider44[Tutar]) -> 400.00 | F6: =SUBTOTAL(109,Gider54[Tutar]) -> 500.00
A7: May | B7: =SUBTOTAL(109,Gider15[Tutar]) -> 500.00 | C7: =SUBTOTAL(109,Gider25[Tutar]) -> 200.00 | D7: =SUBTOTAL(109,Gider35[Tutar]) -> 300.00 | E7: =SUBTOTAL(109,Gider45[Tutar]) -> 400.00 | F7: =SUBTOTAL(109,Gider55[Tutar]) -> 500.00
A8: Haz | B8: =SUBTOTAL(109,Gider16[Tutar]) -> 600.00 | C8: =SUBTOTAL(109,Gider26[Tutar]) -> 200.00 | D8: =SUBTOTAL(109,Gider36[Tutar]) -> 300.00 | E8: =SUBTOTAL(109,Gider46[Tutar]) -> 400.00 | F8: =SUBTOTAL(109,Gider56[Tutar]) -> 500.00
A9: Tem | B9: =SUBTOTAL(109,Gider17[Tutar]) -> 700.00 | C9: =SUBTOTAL(109,Gider27[Tutar]) -> 200.00 | D9: =SUBTOTAL(109,Gider37[Tutar]) -> 300.00 | E9: =SUBTOTAL(109,Gider47[Tutar]) -> 400.00 | F9: =SUBTOTAL(109,Gider57[Tutar]) -> 500.00
A10: Ağu | B10: =SUBTOTAL(109,Gider18[Tutar]) -> 800.00 | C10: =SUBTOTAL(109,Gider28[Tutar]) -> 200.00 | D10: =SUBTOTAL(109,Gider38[Tutar]) -> 300.00 | E10: =SUBTOTAL(109,Gider48[Tutar]) -> 400.00 | F10: =SUBTOTAL(109,Gider58[Tutar]) -> 500.00
A11: Eyl | B11: =SUBTOTAL(109,Gider19[Tutar]) -> 900.00 | C11: =SUBTOTAL(109,Gider29[Tutar]) -> 200.00 | D11: =SUBTOTAL(109,Gider39[Tutar]) -> 300.00 | E11: =SUBTOTAL(109,Gider49[Tutar]) -> 400.00 | F11: =SUBTOTAL(109,Gider59[Tutar]) -> 500.00
A12: Eki | B12: =SUBTOTAL(109,Gider110[Tutar]) -> 1,000.00 | C12: =SUBTOTAL(109,Gider210[Tutar]) -> 200.00 | D12: =SUBTOTAL(109,Gider310[Tutar]) -> 300.00 | E12: =SUBTOTAL(109,Gider410[Tutar]) -> 400.00 | F12: =SUBTOTAL(109,Gider510[Tutar]) -> 500.00
A13: Kas | B13: =SUBTOTAL(109,Gider111[Tutar]) -> 1,100.00 | C13: =SUBTOTAL(109,Gider211[Tutar]) -> 200.00 | D13: =SUBTOTAL(109,Gider311[Tutar]) -> 300.00 | E13: =SUBTOTAL(109,Gider411[Tutar]) -> 400.00 | F13: =SUBTOTAL(109,Gider511[Tutar]) -> 500.00
A14: Ara | B14: =SUBTOTAL(109,Gider112[Tutar]) -> 1,200.00 | C14: =SUBTOTAL(109,Gider212[Tutar]) -> 200.00 | D14: =SUBTOTAL(109,Gider312[Tutar]) -> 300.00 | E14: =SUBTOTAL(109,Gider412[Tutar]) -> 400.00 | F14: =SUBTOTAL(109,Gider512[Tutar]) -> 500.00
A15: Toplam | B15: =SUM(B3:B14) -> 7,800.00 | C15: =SUM(C3:C14) -> 2,400.00 | D15: =SUM(D3:D14) -> 3,600.00 | E15: =SUM(E3:E14) -> 4,800.00 | F15: =SUM(F3:F14) -> 6,000.00
A16: Eğilimler

Sheet Oca
A1: Ocak Giderleri
C3: TOPLAM | D3: =SUM(D10,D17,D24,D30,D36) -> 1,500.00 TL
A4: Gider 1
A5: Tarih | B5: Satınalma Siparişi No | C5: Tedarikçi/Açıklama | D5: Tutar
A6: 2010-01-08 | C6: Örnek 1 | D6: 100.00
A10: Alt Toplam | D10: =SUBTOTAL(109,Gider11[Tutar]) -> 100.00
A11: x
A12: Gider 2
A13: Tarih | B13: Satınalma Siparişi No | C13: Açıklama | D13: Tutar
A14: 2010-01-04 | C14: Örnek 2 | D14: 200.00
A17: Alt Toplam | D17: =SUBTOTAL(109,Gider21[Tutar]) -> 200.00
A18: x
A19: Gider 3
A20: Tarih | B20: Satınalma Siparişi No | C20: Tedarikçi/Açıklama | D20: Tutar
A21: 2010-01-02 | C21: Örnek 3 | D21: 300.00
A24: Alt Toplam | D24: =SUBTOTAL(109,Gider31[Tutar]) -> 300.00
A25: x
A26: Gider 4
A27: Tarih | B27: Satınalma Siparişi No | C27: Tedarikçi/Açıklama | D27: Tutar
A28: 2010-01-10 | C28: Örnek 4 | D28: 400.00
A30: Alt Toplam | D30: =SUBTOTAL(109,Gider41[Tutar]) -> 400.00
A31: s
A32: Gider 5
A33: Tarih | B33: Satınalma Siparişi No | C33: Tedarikçi/Açıklama | D33: Tutar
A34: 2010-01-25 | C34: Örnek 5 | D34: 500.00
A36: Alt Toplam | D36: =SUBTOTAL(109,Gider51[Tutar]) -> 500.00

Sheet Şub
A1: Şubat Giderleri
C3: TOPLAM | D3: =SUM(D10,D17,D24,D30,D36) -> 1,600.00
A4: Gider 1
A5: Tarih | B5: Satınalma Siparişi No | C5: Tedarikçi/Açıklama | D5: Tutar
A6: 2010-02-08 | C6: Örnek 1 | D6: 200.00
A10: Alt Toplam | D10: =SUBTOTAL(109,Gider12[Tutar]) -> 200.00
A11: x
A12: Gider 2
A13: Tarih | B13: Satınalma Siparişi No | C13: Açıklama | D13: Tutar
A14: 2010-02-04 | C14: Örnek 2 | D14: 200.00
A17: Alt Toplam | D17: =SUBTOTAL(109,Gider22[Tutar]) -> 200.00
A18: x
A19: Gider 3
A20: Tarih | B20: Satınalma Siparişi No | C20: Tedarikçi/Açıklama | D20: Tutar
A21: 2010-02-02 | C21: Örnek 3 | D21: 300.00
A24: Alt Toplam | D24: =SUBTOTAL(109,Gider32[Tutar]) -> 300.00
A25: x
A26: Gider 4
A27: Tarih | B27: Satınalma Siparişi No | C27: Tedarikçi/Açıklama | D27: Tutar
A28: 2010-02-10 | C28: Örnek 4 | D28: 400.00
A30: Alt Toplam | D30: =SUBTOTAL(109,Gider42[Tutar]) -> 400.00
A31: s
A32: Gider 5
A33: Tarih | B33: Satınalma Siparişi No | C33: Tedarikçi/Açıklama | D33: Tutar
A34: 2010-02-25 | C34: Örnek 5 | D34: 500.00
A36: Alt Toplam | D36: =SUBTOTAL(109,Gider52[Tutar]) -> 500.00

Sheet Mar
A1: Mart Giderleri
C3: TOPLAM | D3: =SUM(D10,D17,D24,D30,D36) -> 1,700.00
A4: Gider 1
A5: Tarih | B5: Satınalma Siparişi No | C5: Tedarikçi/Açıklama | D5: Tutar
A6: 2010-03-08 | C6: Örnek 1 | D6: 300.00
A10: Alt Toplam | D10: =SUBTOTAL(109,Gider13[Tutar]) -> 300.00
A11: x
A12: Gider 2
A13: Tarih | B13: Satınalma Siparişi No | C13: Açıklama | D13: Tutar
A14: 2010-03-04 | C14: Örnek 2 | D14: 200.00
A17: Alt Toplam | D17: =SUBTOTAL(109,Gider23[Tutar]) -> 200.00
A18: x
A19: Gider 3
A20: Tarih | B20: Satınalma Siparişi No | C20: Tedarikçi/Açıklama | D20: Tutar
A21: 2010-03-02 | C21: Örnek 3 | D21: 300.00
A24: Alt Toplam | D24: =SUBTOTAL(109,Gider33[Tutar]) -> 300.00
A25: x
A26: Gider 4
A27: Tarih | B27: Satınalma Siparişi No | C27: Tedarikçi/Açıklama | D27: Tutar
A28: 2010-03-10 | C28: Örnek 4 | D28: 400.00
A30: Alt Toplam | D30: =SUBTOTAL(109,Gider43[Tutar]) -> 400.00
A31: s
A32: Gider 5
A33: Tarih | B33: Satınalma Siparişi No | C33: Tedarikçi/Açıklama | D33: Tutar
A34: 2010-03-25 | C34: Örnek 5 | D34: 500.00
A36: Alt Toplam | D36: =SUBTOTAL(109,Gider53[Tutar]) -> 500.00

Sheet Nis
A1: Nisan Giderleri
C3: TOPLAM | D3: =SUM(D10,D17,D24,D30,D36) -> 1,800.00
A4: Gider 1
A5: Tarih | B5: Satınalma Siparişi No | C5: Tedarikçi/Açıklama | D5: Tutar
A6: 2010-04-08 | C6: Örnek 1 | D6: 400.00
A10: Alt Toplam | D10: =SUBTOTAL(109,Gider14[Tutar]) -> 400.00
A11: x
A12: Gider 2
A13: Tarih | B13: Satınalma Siparişi No | C13: Açıklama | D13: Tutar
A14: 2010-04-04 | C14: Örnek 2 | D14: 200.00
A17: Alt Toplam | D17: =SUBTOTAL(109,Gider24[Tutar]) -> 200.00
A18: x
A19: Gider 3
A20: Tarih | B20: Satınalma Siparişi No | C20: Tedarikçi/Açıklama | D20: Tutar
A21: 2010-04-02 | C21: Örnek 3 | D21: 300.00
A24: Alt Toplam | D24: =SUBTOTAL(109,Gider34[Tutar]) -> 300.00
A25: x
A26: Gider 4
A27: Tarih | B27: Satınalma Siparişi No | C27: Tedarikçi/Açıklama | D27: Tutar
A28: 2010-04-10 | C28: Örnek 4 | D28: 400.00
A30: Alt Toplam | D30: =SUBTOTAL(109,Gider44[Tutar]) -> 400.00
A31: s
A32: Gider 5
A33: Tarih | B33: Satınalma Siparişi No | C33: Tedarikçi/Açıklama | D33: Tutar
A34: 2010-04-25 | C34: Örnek 5 | D34: 500.00
A36: Alt Toplam | D36: =SUBTOTAL(109,Gider54[Tutar]) -> 500.00

Sheet May
A1: Mayıs Giderleri
C3: TOPLAM | D3: =SUM(D10,D17,D24,D30,D36) -> 1,900.00
A4: Gider 1
A5: Tarih | B5: Satınalma Siparişi No | C5: Tedarikçi/Açıklama | D5: Tutar
A6: 2010-05-08 | C6: Örnek 1 | D6: 500.00
A10: Alt Toplam | D10: =SUBTOTAL(109,Gider15[Tutar]) -> 500.00
A11: x
A12: Gider 2
A13: Tarih | B13: Satınalma Siparişi No | C13: Açıklama | D13: Tutar
A14: 2010-05-04 | C14: Örnek 2 | D14: 200.00
A17: Alt Toplam | D17: =SUBTOTAL(109,Gider25[Tutar]) -> 200.00
A18: x
A19: Gider 3
A20: Tarih | B20: Satınalma Siparişi No | C20: Tedarikçi/Açıklama | D20: Tutar
A21: 2010-05-02 | C21: Örnek 3 | D21: 300.00
A24: Alt Toplam | D24: =SUBTOTAL(109,Gider35[Tutar]) -> 300.00
A25: x
A26: Gider 4
A27: Tarih | B27: Satınalma Siparişi No | C27: Tedarikçi/Açıklama | D27: Tutar
A28: 2010-05-10 | C28: Örnek 4 | D28: 400.00
A30: Alt Toplam | D30: =SUBTOTAL(109,Gider45[Tutar]) -> 400.00
A31: s
A32: Gider 5
A33: Tarih | B33: Satınalma Siparişi No | C33: Tedarikçi/Açıklama | D33: Tutar
A34: 2010-05-25 | C34: Örnek 5 | D34: 500.00
A36: Alt Toplam | D36: =SUBTOTAL(109,Gider55[Tutar]) -> 500.00

Sheet Haz
A1: Haziran Giderleri
C3: TOPLAM | D3: =SUM(D10,D17,D24,D30,D36) -> 2,000.00
A4: Gider 1
A5: Tarih | B5: Satınalma Siparişi No | C5: Tedarikçi/Açıklama | D5: Tutar
A6: 2010-06-08 | C6: Örnek 1 | D6: 600.00
A10: Alt Toplam | D10: =SUBTOTAL(109,Gider16[Tutar]) -> 600.00
A11: x
A12: Gider 2
A13: Tarih | B13: Satınalma Siparişi No | C13: Açıklama | D13: Tutar
A14: 2010-06-04 | C14: Örnek 2 | D14: 200.00
A17: Alt Toplam | D17: =SUBTOTAL(109,Gider26[Tutar]) -> 200.00
A18: x
A19: Gider 3
A20: Tarih | B20: Satınalma Siparişi No | C20: Tedarikçi/Açıklama | D20: Tutar
A21: 2010-06-02 | C21: Örnek 3 | D21: 300.00
A24: Alt Toplam | D24: =SUBTOTAL(109,Gider36[Tutar]) -> 300.00
A25: x
A26: Gider 4
A27: Tarih | B27: Satınalma Siparişi No | C27: Tedarikçi/Açıklama | D27: Tutar
A28: 2010-06-10 | C28: Örnek 4 | D28: 400.00
A30: Alt Toplam | D30: =SUBTOTAL(109,Gider46[Tutar]) -> 400.00
A31: s
A32: Gider 5
A33: Tarih | B33: Satınalma Siparişi No | C33: Tedarikçi/Açıklama | D33: Tutar
A34: 2010-06-25 | C34: Örnek 5 | D34: 500.00
A36: Alt Toplam | D36: =SUBTOTAL(109,Gider56[Tutar]) -> 500.00

Sheet Tem
A1: Temmuz Giderleri
C3: TOPLAM | D3: =SUM(D10,D17,D24,D30,D36) -> 2,100.00
A4: Gider 1
A5: Tarih | B5: Satınalma Siparişi No | C5: Tedarikçi/Açıklama | D5: Tutar
A6: 2010-07-08 | C6: Örnek 1 | D6: 700.00
A10: Alt Toplam | D10: =SUBTOTAL(109,Gider17[Tutar]) -> 700.00
A11: x
A12: Gider 2
A13: Tarih | B13: Satınalma Siparişi No | C13: Açıklama | D13: Tutar
A14: 2010-07-04 | C14: Örnek 2 | D14: 200.00
A17: Alt Toplam | D17: =SUBTOTAL(109,Gider27[Tutar]) -> 200.00
A18: x
A19: Gider 3
A20: Tarih | B20: Satınalma Siparişi No | C20: Tedarikçi/Açıklama | D20: Tutar
A21: 2010-07-02 | C21: Örnek 3 | D21: 300.00
A24: Alt Toplam | D24: =SUBTOTAL(109,Gider37[Tutar]) -> 300.00
A25: x
A26: Gider 4
A27: Tarih | B27: Satınalma Siparişi No | C27: Tedarikçi/Açıklama | D27: Tutar
A28: 2010-07-10 | C28: Örnek 4 | D28: 400.00
A30: Alt Toplam | D30: =SUBTOTAL(109,Gider47[Tutar]) -> 400.00
A31: s
A32: Gider 5
A33: Tarih | B33: Satınalma Siparişi No | C33: Tedarikçi/Açıklama | D33: Tutar
A34: 2010-07-25 | C34: Örnek 5 | D34: 500.00
A36: Alt Toplam | D36: =SUBTOTAL(109,Gider57[Tutar]) -> 500.00

Sheet Ağu
A1: Ağustos Giderleri
C3: TOPLAM | D3: =SUM(D10,D17,D24,D30,D36) -> 2,200.00
A4: Gider 1
A5: Tarih | B5: Satınalma Siparişi No | C5: Tedarikçi/Açıklama | D5: Tutar
A6: 2010-08-08 | C6: Örnek 1 | D6: 800.00
A10: Alt Toplam | D10: =SUBTOTAL(109,Gider18[Tutar]) -> 800.00
A11: x
A12: Gider 2
A13: Tarih | B13: Satınalma Siparişi No | C13: Açıklama | D13: Tutar
A14: 2010-08-04 | C14: Örnek 2 | D14: 200.00
A17: Alt Toplam | D17: =SUBTOTAL(109,Gider28[Tutar]) -> 200.00
A18: x
A19: Gider 3
A20: Tarih | B20: Satınalma Siparişi No | C20: Tedarikçi/Açıklama | D20: Tutar
A21: 2010-08-02 | C21: Örnek 3 | D21: 300.00
A24: Alt Toplam | D24: =SUBTOTAL(109,Gider38[Tutar]) -> 300.00
A25: x
A26: Gider 4
A27: Tarih | B27: Satınalma Siparişi No | C27: Tedarikçi/Açıklama | D27: Tutar
A28: 2010-08-10 | C28: Örnek 4 | D28: 400.00
A30: Alt Toplam | D30: =SUBTOTAL(109,Gider48[Tutar]) -> 400.00
A31: s
A32: Gider 5
A33: Tarih | B33: Satınalma Siparişi No | C33: Tedarikçi/Açıklama | D33: Tutar
A34: 2010-08-25 | C34: Örnek 5 | D34: 500.00
A36: Alt Toplam | D36: =SUBTOTAL(109,Gider58[Tutar]) -> 500.00

Sheet Eyl
A1: Eylül Giderleri
C3: TOPLAM | D3: =SUM(D10,D17,D24,D30,D36) -> 
A4: Gider 1
A5: Tarih | B5: Satınalma Siparişi No | C5: Tedarikçi/Açıklama | D5: Tutar
A6: 2010-09-08 | C6: Örnek 1 | D6: 900.00
A10: Alt Toplam | D10: =ATLTOPLAM(109,Gider19[Tutar]) -> 
A11: x
A12: Gider 2
A13: Tarih | B13: Satınalma Siparişi No | C13: Açıklama | D13: Tutar
A14: 2010-09-04 | C14: Örnek 2 | D14: 200.00
A17: Alt Toplam | D17: =SUBTOTAL(109,Gider29[Tutar]) -> 200.00
A18: x
A19: Gider 3
A20: Tarih | B20: Satınalma Siparişi No | C20: Tedarikçi/Açıklama | D20: Tutar
A21: 2010-09-02 | C21: Örnek 3 | D21: 300.00
A24: Alt Toplam | D24: =SUBTOTAL(109,Gider39[Tutar]) -> 300.00
A25: x
A26: Gider 4
A27: Tarih | B27: Satınalma Siparişi No | C27: Tedarikçi/Açıklama | D27: Tutar
A28: 2010-09-10 | C28: Örnek 4 | D28: 400.00
A30: Alt Toplam | D30: =SUBTOTAL(109,Gider49[Tutar]) -> 400.00
A31: s
A32: Gider 5
A33: Tarih | B33: Satınalma Siparişi No | C33: Tedarikçi/Açıklama | D33: Tutar
A34: 2010-09-25 | C34: Örnek 5 | D34: 500.00
A36: Alt Toplam | D36: =SUBTOTAL(109,Gider59[Tutar]) -> 500.00

Sheet Eki
A1: Ekim Giderleri
C3: TOPLAM | D3: =SUM(D10,D17,D24,D30,D36) -> 2,400.00
A4: Gider 1
A5: Tarih | B5: Satınalma Siparişi No | C5: Tedarikçi/Açıklama | D5: Tutar
A6: 2010-10-08 | C6: Örnek 1 | D6: 1,000.00
A10: Alt Toplam | D10: =SUBTOTAL(109,Gider110[Tutar]) -> 1,000.00
A11: x
A12: Gider 2
A13: Tarih | B13: Satınalma Siparişi No | C13: Açıklama | D13: Tutar
A14: 2010-10-04 | C14: Örnek 2 | D14: 200.00
A17: Alt Toplam | D17: =SUBTOTAL(109,Gider210[Tutar]) -> 200.00
A18: x
A19: Gider 3
A20: Tarih | B20: Satınalma Siparişi No | C20: Tedarikçi/Açıklama | D20: Tutar
A21: 2010-10-02 | C21: Örnek 3 | D21: 300.00
A24: Alt Toplam | D24: =SUBTOTAL(109,Gider310[Tutar]) -> 300.00
A25: x
A26: Gider 4
A27: Tarih | B27: Satınalma Siparişi No | C27: Tedarikçi/Açıklama | D27: Tutar
A28: 2010-10-10 | C28: Örnek 4 | D28: 400.00
A30: Alt Toplam | D30: =SUBTOTAL(109,Gider410[Tutar]) -> 400.00
A31: s
A32: Gider 5
A33: Tarih | B33: Satınalma Siparişi No | C33: Tedarikçi/Açıklama | D33: Tutar
A34: 2010-10-25 | C34: Örnek 5 | D34: 500.00
A36: Alt Toplam | D36: =SUBTOTAL(109,Gider510[Tutar]) -> 500.00

Sheet Kas
A1: Kasım Giderleri
C3: TOPLAM | D3: =SUM(D10,D17,D24,D30,D36) -> 2,500.00
A4: Gider 1
A5: Tarih | B5: Satınalma Siparişi No | C5: Tedarikçi/Açıklama | D5: Tutar
A6: 2010-11-08 | C6: Örnek 1 | D6: 1,100.00
A10: Alt Toplam | D10: =SUBTOTAL(109,Gider111[Tutar]) -> 1,100.00
A11: x
A12: Gider 2
A13: Tarih | B13: Satınalma Siparişi No | C13: Açıklama | D13: Tutar
A14: 2010-11-04 | C14: Örnek 2 | D14: 200.00
A17: Alt Toplam | D17: =SUBTOTAL(109,Gider211[Tutar]) -> 200.00
A18: x
A19: Gider 3
A20: Tarih | B20: Satınalma Siparişi No | C20: Tedarikçi/Açıklama | D20: Tutar
A21: 2010-11-02 | C21: Örnek 3 | D21: 300.00
A24: Alt Toplam | D24: =SUBTOTAL(109,Gider311[Tutar]) -> 300.00
A25: x
A26: Gider 4
A27: Tarih | B27: Satınalma Siparişi No | C27: Tedarikçi/Açıklama | D27: Tutar
A28: 2010-11-10 | C28: Örnek 4 | D28: 400.00
A30: Alt Toplam | D30: =SUBTOTAL(109,Gider411[Tutar]) -> 400.00
A31: s
A32: Gider 5
A33: Tarih | B33: Satınalma Siparişi No | C33: Tedarikçi/Açıklama | D33: Tutar
A34: 2010-11-25 | C34: Örnek 5 | D34: 500.00
A36: Alt Toplam | D36: =SUBTOTAL(109,Gider511[Tutar]) -> 500.00

Sheet Ara
A1: Aralık Giderleri
C3: TOPLAM | D3: =SUM(D10,D17,D24,D30,D36) -> 2,600.00
A4: Gider 1
A5: Tarih | B5: Satınalma Siparişi No | C5: Tedarikçi/Açıklama | D5: Tutar
A6: 2010-12-08 | C6: Örnek 1 | D6: 1,200.00
A10: Alt Toplam | D10: =SUBTOTAL(109,Gider112[Tutar]) -> 1,200.00
A11: x
A12: Gider 2
A13: Tarih | B13: Satınalma Siparişi No | C13: Açıklama | D13: Tutar
A14: 2010-12-04 | C14: Örnek 2 | D14: 200.00
A17: Alt Toplam | D17: =SUBTOTAL(109,Gider212[Tutar]) -> 200.00
A18: x
A19: Gider 3
A20: Tarih | B20: Satınalma Siparişi No | C20: Tedarikçi/Açıklama | D20: Tutar
A21: 2010-12-02 | C21: Örnek 3 | D21: 300.00
A24: Alt Toplam | D24: =SUBTOTAL(109,Gider312[Tutar]) -> 300.00
A25: x
A26: Gider 4
A27: Tarih | B27: Satınalma Siparişi No | C27: Tedarikçi/Açıklama | D27: Tutar
A28: 2010-12-10 | C28: Örnek 4 | D28: 400.00
A30: Alt Toplam | D30: =SUBTOTAL(109,Gider412[Tutar]) -> 400.00
A31: s
A32: Gider 5
A33: Tarih | B33: Satınalma Siparişi No | C33: Tedarikçi/Açıklama | D33: Tutar
A34: 2010-12-25 | C34: Örnek 5 | D34: 500.00
A36: Alt Toplam | D36: =SUBTOTAL(109,Gider512[Tutar]) -> 500.00
